[Event "Centenary THK University 2019"]
[Site "Ankara"]
[Date "2019.05.17"]
[Round "1"]
[White "Ozmen, Kemal"]
[Black "Sonmez, Yunus"]
[Result "1/2-1/2"]
[ECO "B24"]
[WhiteElo "1471"]
[BlackElo "1269"]
[Annotator "NA RC"]
[PlyCount "153"]
[EventDate "2019.05.17"]
[EventType "swiss"]
[EventCountry "TUR"]
[SourceTitle "playchess.com"]
[Source "ChessBase"]
[SourceQuality "1"]
[TimeControl "5400+30"]

1. e4 {[%emt 0:29:30]} c5 {[%emt 0:30:30]} 2. Nc3 {[%emt 0:00:30]} e6 {[%emt 0:00:30]} 3. g3 {[%emt 0:00:00]} g6 {[%emt 0:00:30]} 4. Bg2 {[%emt 0:00:00]} Bg7 {[%emt 0:00:30]} 5. Nge2 {[%emt 0:00:30]} Nc6 {[%emt 0:01:30]} 6. d3 {[%emt 0:00:30]} Nge7 {[%emt 0:02:30]} 7. h4 {[%emt 0:00:00]} h5 {[%emt 0:00:30]} 8. O-O {[%emt 0:00:00]} d6 {[%emt 0:01:30]} 9. Be3 {[%emt 0:03:30]} Nd4 {[%emt 0:01:30]} 10. Qd2 {[%emt 0:00:30]} Nec6 {[%emt 0:00:30]} 11. a3 {[%emt 0:00:30]} Nxe2+ {[%emt 0:00:30]} 12. Qxe2 {[%emt 0:00:30]} Nd4 {[%emt 0:00:30]} 13. Qd2 {[%emt 0:00:30]} Qb6 {[%emt 0:00:30]} 14. Rab1 {[%emt 0:00:30]} e5 {[%emt 0:01:30]} 15. Nd5 {[%emt 0:00:30]} Qd8 {[%emt 0:00:30]} 16. c3 {[%emt 0:04:30]} Ne6 {[%emt 0:03:30]} 17. b4 {[%emt 0:02:30]} b6 {[%emt 0:01:30]} 18. f4 {[%emt 0:03:30]} Nc7 {[%emt 0:00:30]} 19. Nxc7+ {[%emt 0:00:30]} Qxc7 {[%emt 0:00:30]} 20. f5 {[%emt 0:00:30]} O-O {[%emt 0:00:30]} 21. Bh6 {[%emt 0:03:30]} f6 {[%emt 0:02:30]} 22. fxg6 {[%emt 0:01:30]} Bg4 {[%emt 0:00:30]} 23. Rf2 {[%emt 0:06:30]} Bxh6 {[%emt 0:00:30]} 24. Qxh6 {[%emt 0:00:30]} Qg7 {[%emt 0:00:30]} 25. Qd2 {[%emt 0:05:30]} Qxg6 {[%emt 0:00:30]} 26. Rbf1 {[%emt 0:00:00]} Rf7 {[%emt 0:00:30]} 27. d4 {[%emt 0:01:00]} cxd4 {[%emt 0:00:30]} 28. cxd4 {[%emt 0:00:30]} Raf8 {[%emt 0:01:30]} 29. dxe5 {[%emt 0:03:30]} dxe5 {[%emt 0:01:30]} 30. Qd5 {[%emt 0:02:30]} Kg7 {[%emt 0:00:00]} 31. Bf3 {[%emt 0:00:30]} Rd7 {[%emt 0:01:00]} 32. Qc6 {[%emt 0:00:30]} Rdf7 {[%emt 0:02:30]} 33. Bxg4 {[%emt 0:05:30]} Qxg4 {[%emt 0:00:30]} 34. Kh2 {[%emt 0:01:30]} Qd7 {[%emt 0:02:30]} 35. Qc2 {[%emt 0:02:30]} Rc8 {[%emt 0:01:30]} 36. Qe2 {[%emt 0:00:30]} Qg4 {[%emt 0:00:30]} 37. Qe3 {[%emt 0:03:30]} Rc4 {[%emt 0:00:30]} 38. Re1 {[%emt 0:01:08]} Rfc7 {[%emt 0:01:30]} 39. Qf3 {[%emt 0:00:45]} R7c6 {[%emt 0:02:30]} 40. Qxg4+ {[%emt 0:01:21]} hxg4 {[%emt 0:00:00]} 41. Rd2 {[%emt 0:00:33]} Rc2 {[%emt 0:01:00]} 42. Ree2 {[%emt 0:00:22]} Rxd2 {[%emt 0:00:30]} 43. Rxd2 {[%emt 0:00:03]} a5 {[%emt 0:01:30]} 44. bxa5 {[%emt 0:03:09]} bxa5 {[%emt 0:00:00]} 45. Rd7+ {[%emt 0:00:34]} Kg6 {[%emt 0:00:00]} 46. Ra7 {[%emt 0:00:14]} Rc2+ {[%emt 0:01:30]} 47. Kg1 {[%emt 0:00:23]} Rc3 {[%emt 0:00:00]} 48. Rxa5 {[%emt 0:00:27]} Rxg3+ {[%emt 0:00:00]} 49. Kf2 {[%emt 0:00:36]} Rf3+ {[%emt 0:00:30]} 50. Kg2 {[%emt 0:01:01]} Re3 {[%emt 0:01:30]} 51. Ra6 {[%emt 0:01:33]} Rxe4 {[%emt 0:00:30]} 52. h5+ {[%emt 0:00:34]} Kxh5 {[%emt 0:00:30]} 53. Rxf6 {[%emt 0:00:17]} Kg5 {[%emt 0:01:30]} 54. Ra6 {[%emt 0:01:10]} Re2+ {[%emt 0:00:30]} 55. Kf1 {[%emt 0:00:10]} Ra2 {[%emt 0:01:30]} 56. a4 {[%emt 0:00:05]} Kf4 {[%emt 0:00:00]} 57. a5 {[%emt 0:02:11]} g3 {[%emt 0:00:00]} 58. Rf6+ {[%emt 0:01:24]} Ke3 {[%emt 0:00:30]} 59. a6 {[%emt 0:00:31]} e4 {[%emt 0:00:30]} 60. Rg6 {[%emt 0:01:46]} Kf4 {[%emt 0:00:30]} 61. Rf6+ {[%emt 0:01:04]} Kg5 {[%emt 0:00:30]} 62. Rb6 {[%emt 0:01:56]} Kf5 {[%emt 0:00:30]} 63. Rb5+ {[%emt 0:00:37]} Kf4 {[%emt 0:00:30]} 64. Rb6 {[%emt 0:00:09]} e3 {[%emt 0:01:30]} 65. Rf6+ {[%emt 0:00:37]} Ke4 {[%emt 0:00:30]} 66. Re6+ {[%emt 0:01:08]} Kd3 {[%emt 0:03:30]} 67. Rd6+ {[%emt 0:01:06]} Kc4 {[%emt 0:00:30]} 68. Rg6 {[%emt 0:01:38]} Rf2+ {[%emt 0:00:30]} 69. Ke1 {[%emt 0:00:47]} g2 {[%emt 0:01:30]} 70. a7 {[%emt 0:00:37]} Ra2 {[%emt 0:01:30]} 71. Rxg2 {[%emt 0:02:30]} Rxa7 {[%emt 0:00:30]} 72. Rg8 {[%emt 0:00:25]} Kd3 {[%emt 0:00:30]} 73. Rd8+ {[%emt 0:00:08]} Ke4 {[%emt 0:00:00]} 74. Re8+ {[%emt 0:00:19]} Kd4 {[%emt 0:00:00]} 75. Rd8+ {[%emt 0:00:06]} Kc5 {[%emt 0:00:30]} 76. Ke2 {[%emt 0:00:09]} Ra3 {[%emt 0:00:30]} 77. Rd3 {[%emt 0:00:13]} 1/2-1/2

[Event "Centenary THK University 2019"]
[Site "Ankara"]
[Date "2019.05.17"]
[Round "1"]
[White "Gurbuz, Talha Zubeyir"]
[Black "Dalar, Yusuf"]
[Result "1-0"]
[ECO "D05"]
[WhiteElo "1361"]
[BlackElo "1499"]
[Annotator "NA RC"]
[PlyCount "97"]
[EventDate "2019.05.17"]
[EventType "swiss"]
[EventCountry "TUR"]
[SourceTitle "playchess.com"]
[Source "ChessBase"]
[SourceQuality "1"]
[TimeControl "5400+30"]

1. d4 {[%emt 0:30:30]} Nf6 {[%emt 0:30:30]} 2. Nf3 {[%emt 0:00:30]} d5 {[%emt 0:00:00]} 3. e3 {[%emt 0:00:30]} e6 {[%emt 0:00:00]} 4. b3 {[%emt 0:00:00]} Bd6 {[%emt 0:00:30]} 5. Bd3 {[%emt 0:01:00]} O-O {[%emt 0:00:30]} 6. Nbd2 {[%emt 0:00:30]} c5 {[%emt 0:00:30]} 7. Bb2 {[%emt 0:02:30]} cxd4 {[%emt 0:00:00]} 8. exd4 {[%emt 0:00:30]} Nc6 {[%emt 0:00:00]} 9. Ne5 {[%emt 0:01:30]} Nd7 {[%emt 0:01:30]} 10. O-O {[%emt 0:07:30]} Ndxe5 {[%emt 0:02:30]} 11. dxe5 {[%emt 0:13:30]} Nxe5 {[%emt 0:00:30]} 12. Bxh7+ {[%emt 0:00:30]} Kxh7 {[%emt 0:02:30]} 13. Qh5+ {[%emt 0:00:30]} Kg8 {[%emt 0:00:00]} 14. Bxe5 {[%emt 0:00:30]} Bxe5 {[%emt 0:01:00]} 15. Qxe5 {[%emt 0:00:00]} f6 {[%emt 0:00:00]} 16. Qh5 {[%emt 0:02:00]} e5 {[%emt 0:01:00]} 17. Rad1 {[%emt 0:01:30]} Qc7 {[%emt 0:00:00]} 18. c4 {[%emt 0:00:30]} d4 {[%emt 0:00:00]} 19. f4 {[%emt 0:00:30]} Be6 {[%emt 0:03:30]} 20. Nf3 {[%emt 0:05:30]} Bf7 {[%emt 0:01:30]} 21. Qf5 {[%emt 0:01:30]} exf4 {[%emt 0:01:30]} 22. Nxd4 {[%emt 0:00:30]} Rae8 {[%emt 0:00:30]} 23. Qxf4 {[%emt 0:06:30]} Qxf4 {[%emt 0:02:30]} 24. Rxf4 {[%emt 0:00:30]} Bh5 {[%emt 0:00:00]} 25. Rd2 {[%emt 0:00:00]} Re5 {[%emt 0:03:00]} 26. Rf5 {[%emt 0:02:00]} Rfe8 {[%emt 0:04:30]} 27. Rxe5 {[%emt 0:02:30]} Rxe5 {[%emt 0:00:30]} 28. Kf2 {[%emt 0:01:49]} Kf7 {[%emt 0:03:30]} 29. Nb5 {[%emt 0:00:33]} Rf5+ {[%emt 0:01:30]} 30. Kg1 {[%emt 0:00:18]} Ke7 {[%emt 0:01:30]} 31. Nxa7 {[%emt 0:01:52]} Ra5 {[%emt 0:02:30]} 32. Nc8+ {[%emt 0:02:59]} Ke6 {[%emt 0:01:30]} 33. Nb6 {[%emt 0:02:11]} Bg6 {[%emt 0:02:30]} 34. a4 {[%emt 0:02:02]} Re5 {[%emt 0:03:30]} 35. Kf2 {[%emt 0:01:11]} Rf5+ {[%emt 0:01:30]} 36. Ke3 {[%emt 0:00:36]} Re5+ {[%emt 0:00:30]} 37. Kd4 {[%emt 0:01:18]} Kd6 {[%emt 0:01:30]} 38. Kc3+ {[%emt 0:01:24]} Kc6 {[%emt 0:05:30]} 39. Nd5 {[%emt 0:00:57]} Bf7 {[%emt 0:04:30]} 40. Nb4+ {[%emt 0:00:36]} Kc7 {[%emt 0:01:30]} 41. Nc2 {[%emt 0:01:15]} Rh5 {[%emt 0:00:35]} 42. g3 {[%emt 0:01:25]} Bg6 {[%emt 0:00:55]} 43. Nd4 {[%emt 0:00:26]} Bf7 {[%emt 0:01:01]} 44. Nb5+ {[%emt 0:00:39]} Kb6 {[%emt 0:04:12]} 45. Rd6+ {[%emt 0:01:28]} Ka5 {[%emt 0:00:35]} 46. Rd7 {[%emt 0:00:33]} Be8 {[%emt 0:00:34]} 47. Rxb7 {[%emt 0:00:23]} Rxh2 {[%emt 0:01:27]} 48. Ra7+ {[%emt 0:00:23]} Kb6 {[%emt 0:00:42]} 49. a5+ {[%emt 0:00:13]} 1-0

[Event "Centenary THK University 2019"]
[Site "Ankara"]
[Date "2019.05.18"]
[Round "2"]
[White "Ozalp, Burak"]
[Black "Sinay, Ahmet"]
[Result "0-1"]
[ECO "B70"]
[WhiteElo "1901"]
[BlackElo "1501"]
[Annotator "NA RC"]
[PlyCount "158"]
[EventDate "2019.05.17"]
[EventType "swiss"]
[EventCountry "TUR"]
[SourceTitle "playchess.com"]
[Source "ChessBase"]
[SourceQuality "1"]
[TimeControl "5400+30"]

1. e4 {[%emt 1:08:30]} c5 {[%emt 0:40:30]} 2. Nf3 {[%emt 0:00:30]} d6 {[%emt 0:00:30]} 3. d4 {[%emt 0:00:30]} cxd4 {[%emt 0:00:30]} 4. Nxd4 {[%emt 0:00:30]} Nf6 {[%emt 0:00:30]} 5. Nc3 {[%emt 0:00:30]} g6 {[%emt 0:00:30]} 6. Be2 {[%emt 0:00:30]} Bg7 {[%emt 0:00:30]} 7. O-O {[%emt 0:00:30]} O-O {[%emt 0:00:30]} 8. Bg5 {[%emt 0:00:30]} Nc6 {[%emt 0:00:30]} 9. Nb3 {[%emt 0:00:30]} Be6 {[%emt 0:00:30]} 10. Re1 {[%emt 0:00:30]} a6 {[%emt 0:00:30]} 11. Bf1 {[%emt 0:00:30]} b5 {[%emt 0:00:30]} 12. Nd5 {[%emt 0:00:30]} Bxd5 {[%emt 0:00:30]} 13. exd5 {[%emt 0:00:30]} Ne5 {[%emt 0:00:30]} 14. c3 {[%emt 0:00:30]} Qb6 {[%emt 0:00:30]} 15. Bxf6 {[%emt 0:00:30]} Bxf6 {[%emt 0:00:30]} 16. Nd4 {[%emt 0:00:30]} h5 {[%emt 0:00:30]} 17. f4 {[%emt 0:00:30]} Ng4 {[%emt 0:00:30]} 18. h3 {[%emt 0:00:30]} Bxd4+ {[%emt 0:00:30]} 19. Qxd4 {[%emt 0:00:30]} Qxd4+ {[%emt 0:00:30]} 20. cxd4 {[%emt 0:00:30]} Nf6 {[%emt 0:24:30]} 21. Rxe7 {[%emt 0:15:41]} Nxd5 {[%emt 0:00:30]} 22. Rd7 {[%emt 0:00:30]} Rfd8 {[%emt 0:00:30]} 23. Rxd8+ {[%emt 0:00:30]} Rxd8 {[%emt 0:00:30]} 24. a4 {[%emt 0:00:30]} Nxf4 {[%emt 0:00:30]} 25. axb5 {[%emt 0:00:30]} axb5 {[%emt 0:00:30]} 26. Bxb5 {[%emt 0:00:30]} Rb8 {[%emt 0:00:30]} 27. Ra5 {[%emt 0:00:30]} Ne6 {[%emt 0:00:30]} 28. d5 {[%emt 0:00:30]} Nd4 {[%emt 0:00:30]} 29. Bc6 {[%emt 0:00:30]} Rxb2 {[%emt 0:00:30]} 30. Ra8+ {[%emt 0:00:30]} Kg7 {[%emt 0:00:30]} 31. Rd8 {[%emt 0:00:30]} Nf5 {[%emt 0:00:30]} 32. Be8 {[%emt 0:00:30]} Re2 {[%emt 0:00:30]} 33. g4 {[%emt 0:00:30]} hxg4 {[%emt 0:00:30]} 34. hxg4 {[%emt 0:00:30]} Nh6 {[%emt 0:00:30]} 35. Bc6 {[%emt 0:00:30]} Nxg4 {[%emt 0:00:30]} 36. Rxd6 {[%emt 0:00:30]} Ne5 {[%emt 0:00:30]} 37. Kf1 {[%emt 0:00:30]} Rd2 {[%emt 0:00:30]} 38. Bb7 {[%emt 0:00:30]} g5 {[%emt 0:00:30]} 39. Ra6 {[%emt 0:00:30]} g4 {[%emt 0:00:30]} 40. Ra3 {[%emt 0:00:30]} Nc4 {[%emt 0:00:30]} 41. Ra4 {[%emt 0:00:30]} Ne3+ {[%emt 0:00:30]} 42. Ke1 {[%emt 0:00:30]} g3 {[%emt 0:00:30]} 43. Kxd2 {[%emt 0:00:30]} g2 {[%emt 0:00:30]} 44. Ra1 {[%emt 0:00:30]} Nf1+ {[%emt 0:00:30]} 45. Ke2 {[%emt 0:00:30]} g1=Q {[%emt 0:00:30]} 46. Rxf1 {[%emt 0:00:30]} Qg4+ {[%emt 0:00:30]} 47. Rf3 {[%emt 0:00:30]} Qc4+ {[%emt 0:00:30]} 48. Kf2 {[%emt 0:00:30]} Qc2+ {[%emt 0:00:00]} 49. Ke3 {[%emt 0:02:02]} Qb3+ {[%emt 0:00:00]} 50. Ke4 {[%emt 0:00:30]} Qxb7 {[%emt 0:00:00]} 51. Rd3 {[%emt 0:01:35]} Kf6 {[%emt 0:00:00]} 52. Rf3+ {[%emt 0:00:30]} Ke7 {[%emt 0:00:30]} 53. Rd3 {[%emt 0:00:30]} Kd6 {[%emt 0:00:30]} 54. Rd4 {[%emt 0:00:00]} Qe7+ {[%emt 0:00:00]} 55. Kd3 {[%emt 0:00:02]} f5 {[%emt 0:00:00]} 56. Ra4 {[%emt 0:00:00]} Kxd5 {[%emt 0:00:30]} 57. Ra5+ {[%emt 0:00:01]} Ke6 {[%emt 0:00:30]} 58. Ra2 {[%emt 0:00:30]} Qd6+ {[%emt 0:00:30]} 59. Ke2 {[%emt 0:00:30]} Qe5+ {[%emt 0:00:30]} 60. Kf1 {[%emt 0:00:30]} Qb5+ {[%emt 0:00:30]} 61. Re2+ {[%emt 0:00:30]} Kf6 {[%emt 0:00:30]} 62. Kf2 {[%emt 0:00:30]} f4 {[%emt 0:00:30]} 63. Kf3 {[%emt 0:00:30]} Kf5 {[%emt 0:00:30]} 64. Kf2 {[%emt 0:00:00]} Qc5+ {[%emt 0:00:00]} 65. Kf1 {[%emt 0:00:00]} f3 {[%emt 0:00:00]} 66. Re3 {[%emt 0:00:00]} Qc1+ {[%emt 0:00:00]} 67. Kf2 {[%emt 0:00:00]} Kg4 {[%emt 0:01:00]} 68. Re4+ {[%emt 0:00:00]} Kf5 {[%emt 0:00:30]} 69. Re3 {[%emt 0:00:00]} Kf4 {[%emt 0:01:30]} 70. Rxf3+ {[%emt 0:00:00]} Ke4 {[%emt 0:00:00]} 71. Kg2 {[%emt 0:00:00]} Qd2+ {[%emt 0:02:00]} 72. Rf2 {[%emt 0:00:00]} Qg5+ {[%emt 0:00:30]} 73. Kh2 {[%emt 0:00:17]} Ke3 {[%emt 0:00:00]} 74. Rg2 {[%emt 0:03:20]} Qh4+ {[%emt 0:00:00]} 75. Kg1 {[%emt 0:00:30]} Kf3 {[%emt 0:00:30]} 76. Rg8 {[%emt 0:00:30]} Qd4+ {[%emt 0:00:30]} 77. Kh2 {[%emt 0:00:30]} Qd2+ {[%emt 0:00:30]} 78. Kh1 {[%emt 0:02:13]} Qc1+ {[%emt 0:00:30]} 79. Kh2 {[%emt 0:00:10]} Qc2+ {[%emt 0:00:30]} 0-1

[Event "Centenary THK University 2019"]
[Site "Ankara"]
[Date "2019.05.18"]
[Round "2"]
[White "Celikel, Fatih"]
[Black "Bozdemir, Yusuf"]
[Result "1/2-1/2"]
[ECO "D00"]
[WhiteElo "1868"]
[BlackElo "1619"]
[Annotator "NA RC"]
[PlyCount "127"]
[EventDate "2019.05.17"]
[EventType "swiss"]
[EventCountry "TUR"]
[SourceTitle "playchess.com"]
[Source "ChessBase"]
[SourceQuality "1"]
[TimeControl "5400+30"]

1. d4 {[%emt 1:02:30]} d5 {[%emt 0:44:30]} 2. Bf4 {[%emt 0:00:30]} Nf6 {[%emt 0:01:30]} 3. e3 {[%emt 0:00:30]} e6 {[%emt 0:00:30]} 4. Nd2 {[%emt 0:00:30]} Bd6 {[%emt 0:00:30]} 5. Bg3 {[%emt 0:00:30]} Nbd7 {[%emt 0:00:30]} 6. Ngf3 {[%emt 0:00:30]} Bxg3 {[%emt 0:00:30]} 7. hxg3 {[%emt 0:00:30]} Qe7 {[%emt 0:00:30]} 8. Ne5 {[%emt 0:00:30]} Nxe5 {[%emt 0:00:30]} 9. dxe5 {[%emt 0:00:30]} Ne4 {[%emt 0:00:30]} 10. Nxe4 {[%emt 0:00:30]} dxe4 {[%emt 0:00:30]} 11. Qd4 {[%emt 0:00:30]} Bd7 {[%emt 0:00:30]} 12. Qxe4 {[%emt 0:00:30]} Bc6 {[%emt 0:00:30]} 13. Qh4 {[%emt 0:00:30]} Qc5 {[%emt 0:00:30]} 14. O-O-O {[%emt 0:00:30]} Qxe5 {[%emt 0:00:30]} 15. Qb4 {[%emt 0:01:30]} a5 {[%emt 0:00:30]} 16. Qa3 {[%emt 0:18:47]} Rd8 {[%emt 0:26:04]} 17. Rxd8+ {[%emt 0:00:30]} Kxd8 {[%emt 0:00:30]} 18. Be2 {[%emt 0:00:30]} Kc8 {[%emt 0:00:30]} 19. f4 {[%emt 0:00:30]} Qe4 {[%emt 0:00:30]} 20. Bf3 {[%emt 0:00:30]} Qb4 {[%emt 0:00:30]} 21. Bxc6 {[%emt 0:00:30]} bxc6 {[%emt 0:00:30]} 22. Qxb4 {[%emt 0:00:30]} axb4 {[%emt 0:00:30]} 23. Rh5 {[%emt 0:00:30]} Kb7 {[%emt 0:00:30]} 24. g4 {[%emt 0:00:30]} h6 {[%emt 0:00:30]} 25. g5 {[%emt 0:00:30]} Rg8 {[%emt 0:00:30]} 26. g4 {[%emt 0:00:30]} hxg5 {[%emt 0:00:30]} 27. Rxg5 {[%emt 0:00:30]} g6 {[%emt 0:00:30]} 28. f5 {[%emt 0:00:30]} exf5 {[%emt 0:00:30]} 29. gxf5 {[%emt 0:00:30]} Re8 {[%emt 0:00:30]} 30. fxg6 {[%emt 0:00:30]} fxg6 {[%emt 0:00:30]} 31. Rg3 {[%emt 0:00:30]} Re5 {[%emt 0:00:30]} 32. Kd2 {[%emt 0:00:30]} g5 {[%emt 0:00:30]} 33. Kd3 {[%emt 0:00:30]} c5 {[%emt 0:00:30]} 34. e4 {[%emt 0:00:30]} Kb6 {[%emt 0:00:30]} 35. Rf3 {[%emt 0:00:30]} Re6 {[%emt 0:00:30]} 36. Rf5 {[%emt 0:00:30]} Rg6 {[%emt 0:00:30]} 37. e5 {[%emt 0:00:30]} Kb5 {[%emt 0:00:30]} 38. Ke4 {[%emt 0:00:30]} g4 {[%emt 0:00:30]} 39. Rf1 {[%emt 0:00:30]} g3 {[%emt 0:00:30]} 40. Kf5 {[%emt 0:01:15]} g2 {[%emt 0:02:33]} 41. Rg1 {[%emt 0:00:30]} Rg3 {[%emt 0:00:30]} 42. Kf4 {[%emt 0:00:30]} Rg6 {[%emt 0:00:30]} 43. Kf5 {[%emt 0:00:30]} Rg3 {[%emt 0:00:04]} 44. Ke6 {[%emt 0:00:25]} Kc6 {[%emt 0:00:41]} 45. c4 {[%emt 0:01:06]} bxc3 {[%emt 0:00:19]} 46. bxc3 {[%emt 0:00:30]} c4 {[%emt 0:00:00]} 47. a4 {[%emt 0:02:59]} Rxc3 {[%emt 0:02:34]} 48. Rxg2 {[%emt 0:00:44]} Ra3 {[%emt 0:00:15]} 49. Ke7 {[%emt 0:01:44]} Rxa4 {[%emt 0:00:30]} 50. e6 {[%emt 0:00:13]} c3 {[%emt 0:00:18]} 51. Kf7 {[%emt 0:01:25]} Rf4+ {[%emt 0:00:39]} 52. Ke8 {[%emt 0:00:30]} Kd6 {[%emt 0:00:30]} 53. e7 {[%emt 0:01:28]} Re4 {[%emt 0:02:09]} 54. Rg6+ {[%emt 0:00:16]} Kc5 {[%emt 0:04:30]} 55. Kd7 {[%emt 0:01:22]} Kb4 {[%emt 0:00:39]} 56. Rc6 {[%emt 0:01:26]} Kb3 {[%emt 0:01:20]} 57. Rxc7 {[%emt 0:00:05]} c2 {[%emt 0:00:32]} 58. Rb7+ {[%emt 0:00:20]} Ka2 {[%emt 0:00:36]} 59. Ra7+ {[%emt 0:00:38]} Kb2 {[%emt 0:00:40]} 60. Rb7+ {[%emt 0:00:04]} Ka2 {[%emt 0:00:00]} 61. Rc7 {[%emt 0:00:24]} Kb2 {[%emt 0:00:00]} 62. Rxc2+ {[%emt 0:00:20]} Kxc2 {[%emt 0:00:31]} 63. e8=Q {[%emt 0:00:08]} Rxe8 {[%emt 0:00:06]} 64. Kxe8 {[%emt 0:00:34]} 1/2-1/2

[Event "Centenary THK University 2019"]
[Site "Ankara"]
[Date "2019.05.18"]
[Round "2"]
[White "Ozcan, Kadir Kutay"]
[Black "Macit, Mehmet Alper"]
[Result "1-0"]
[ECO "B57"]
[WhiteElo "1822"]
[BlackElo "1501"]
[Annotator "NA RC"]
[PlyCount "51"]
[EventDate "2019.05.17"]
[EventType "swiss"]
[EventCountry "TUR"]
[SourceTitle "playchess.com"]
[Source "ChessBase"]
[SourceQuality "1"]
[TimeControl "5400+30"]

1. e4 {[%emt 0:33:30]} c5 {[%emt 1:01:30]} 2. Nf3 {[%emt 0:00:30]} d6 {[%emt 0:00:30]} 3. d4 {[%emt 0:00:30]} cxd4 {[%emt 0:00:30]} 4. Nxd4 {[%emt 0:00:30]} Nf6 {[%emt 0:00:30]} 5. Nc3 {[%emt 0:00:30]} Nc6 {[%emt 0:00:30]} 6. Bc4 {[%emt 0:00:30]} g6 {[%emt 0:00:30]} 7. Nxc6 {[%emt 0:00:30]} bxc6 {[%emt 0:00:30]} 8. e5 {[%emt 0:00:30]} dxe5 {[%emt 0:00:30]} 9. Bxf7+ {[%emt 0:00:30]} Kxf7 {[%emt 0:00:30]} 10. Qxd8 {[%emt 0:00:30]} Bg7 {[%emt 0:00:30]} 11. Qd1 {[%emt 0:00:30]} Ba6 {[%emt 0:00:30]} 12. Qf3 {[%emt 0:00:30]} Rab8 {[%emt 0:00:30]} 13. Qxc6 {[%emt 0:00:30]} Rb6 {[%emt 0:00:30]} 14. Qa4 {[%emt 0:00:30]} Rd8 {[%emt 0:00:30]} 15. Bd2 {[%emt 0:00:30]} Rd4 {[%emt 0:00:30]} 16. Qa3 {[%emt 0:00:30]} Rxd2 {[%emt 0:00:30]} 17. Kxd2 {[%emt 0:00:30]} Bh6+ {[%emt 0:00:30]} 18. Ke1 {[%emt 0:00:30]} Bb7 {[%emt 0:00:30]} 19. Kf1 {[%emt 0:00:30]} Ba6+ {[%emt 0:00:30]} 20. Ke1 {[%emt 0:00:30]} Bb7 {[%emt 0:00:30]} 21. Qxa7 {[%emt 0:00:30]} Rxb2 {[%emt 0:00:30]} 22. Rb1 {[%emt 0:00:30]} Rxc2 {[%emt 0:00:30]} 23. Rxb7 {[%emt 0:00:30]} Rxc3 {[%emt 0:00:30]} 24. Rxe7+ {[%emt 0:00:30]} Kg8 {[%emt 0:00:30]} 25. Rc7 {[%emt 0:00:30]} Rd3 {[%emt 0:00:30]} 26. Qa6 {[%emt 0:00:30]} 1-0

[Event "Centenary THK University 2019"]
[Site "Ankara"]
[Date "2019.05.18"]
[Round "2"]
[White "Genc, Mehmet Emin"]
[Black "Alkan, Ferman"]
[Result "0-1"]
[ECO "C11"]
[WhiteElo "1664"]
[BlackElo "1876"]
[Annotator "NA RC"]
[PlyCount "55"]
[EventDate "2019.05.17"]
[EventType "swiss"]
[EventCountry "TUR"]
[SourceTitle "playchess.com"]
[Source "ChessBase"]
[SourceQuality "1"]
[TimeControl "5400+30"]

1. e4 {[%emt 0:53:30]} Nf6 {[%emt 0:52:30]} 2. Nc3 {[%emt 0:00:30]} d5 {[%emt 0:00:30]} 3. e5 {[%emt 0:00:30]} Nfd7 {[%emt 0:00:30]} 4. d4 {[%emt 0:00:30]} e6 {[%emt 0:00:30]} 5. Nf3 {[%emt 0:02:30]} c5 {[%emt 0:00:30]} 6. Bf4 {[%emt 0:00:30]} Nc6 {[%emt 0:00:30]} 7. dxc5 {[%emt 0:00:30]} Bxc5 {[%emt 0:00:30]} 8. Bd3 {[%emt 0:00:30]} Qb6 {[%emt 0:00:30]} 9. O-O {[%emt 0:00:30]} Qxb2 {[%emt 0:00:30]} 10. Rb1 {[%emt 0:00:30]} Qxc3 {[%emt 0:00:30]} 11. Bd2 {[%emt 0:00:30]} Qa3 {[%emt 0:00:30]} 12. Rb3 {[%emt 0:01:30]} Qa4 {[%emt 0:00:30]} 13. Qe2 {[%emt 0:00:30]} Nd4 {[%emt 0:00:30]} 14. Nxd4 {[%emt 0:00:30]} Qxd4 {[%emt 0:00:30]} 15. Bc3 {[%emt 0:00:30]} Qh4 {[%emt 0:00:30]} 16. g3 {[%emt 0:00:30]} Qg5 {[%emt 0:00:30]} 17. h4 {[%emt 0:00:30]} Qxg3+ {[%emt 0:00:30]} 18. Kh1 {[%emt 0:00:30]} Qxh4+ {[%emt 0:00:30]} 19. Kg2 {[%emt 0:00:30]} Qg5+ {[%emt 0:00:30]} 20. Kh3 {[%emt 0:00:30]} d4 {[%emt 0:00:30]} 21. Bd2 {[%emt 0:00:30]} Qxe5 {[%emt 0:00:30]} 22. Qg4 {[%emt 0:00:30]} Nf6 {[%emt 0:00:30]} 23. Bb5+ {[%emt 0:00:30]} Kf8 {[%emt 0:01:30]} 24. Qh4 {[%emt 0:00:30]} Qf5+ {[%emt 0:00:30]} 25. Kg2 {[%emt 0:00:30]} Bd6 {[%emt 0:00:30]} 26. f4 {[%emt 0:00:30]} g5 {[%emt 0:00:30]} 27. Qh6+ {[%emt 0:00:30]} Ke7 {[%emt 0:00:00]} 28. fxg5 {[%emt 0:26:54]} 0-1

[Event "Centenary THK University 2019"]
[Site "Ankara"]
[Date "2019.05.18"]
[Round "2"]
[White "Yaprak, Ufuk"]
[Black "Keskin, Suara"]
[Result "0-1"]
[ECO "B08"]
[WhiteElo "1492"]
[BlackElo "1728"]
[Annotator "NA RC"]
[PlyCount "33"]
[EventDate "2019.05.17"]
[EventType "swiss"]
[EventCountry "TUR"]
[SourceTitle "playchess.com"]
[Source "ChessBase"]
[SourceQuality "1"]
[TimeControl "5400+30"]

1. e4 {[%emt 1:26:24]} d6 {[%emt 0:35:30]} 2. d4 {[%emt 0:00:30]} Nf6 {[%emt 0:00:30]} 3. Nc3 {[%emt 0:00:12]} g6 {[%emt 0:00:30]} 4. Nf3 {[%emt 0:00:30]} Bg7 {[%emt 0:00:30]} 5. Bg5 {[%emt 0:00:30]} O-O {[%emt 0:00:30]} 6. Qd2 {[%emt 0:00:30]} c6 {[%emt 0:00:30]} 7. Be2 {[%emt 0:00:30]} Qc7 {[%emt 0:00:30]} 8. Bh6 {[%emt 0:01:10]} e5 {[%emt 0:00:30]} 9. dxe5 {[%emt 0:00:30]} dxe5 {[%emt 0:00:30]} 10. Rd1 {[%emt 0:00:30]} Nbd7 {[%emt 0:00:30]} 11. Bxg7 {[%emt 0:00:30]} Kxg7 {[%emt 0:00:30]} 12. h4 {[%emt 0:00:30]} h5 {[%emt 0:00:30]} 13. Ng5 {[%emt 0:00:30]} Nc5 {[%emt 0:00:30]} 14. b4 {[%emt 0:00:30]} Ne6 {[%emt 0:00:30]} 15. Nxe6+ {[%emt 0:00:30]} Bxe6 {[%emt 0:00:30]} 16. O-O {[%emt 0:00:30]} Rad8 {[%emt 0:00:30]} 17. Qg5 {[%emt 0:01:58]} 0-1